[Event "*** Titled Tuesday Blitz"]
[Site "Chess.com"]
[Date "2019.02.05"]
[Round "7"]
[White "nubair1198"]
[Black "Jbd735"]
[Result "1-0"]
[WhiteElo "2655"]
[BlackElo "2464"]
[TimeControl "180+2"]
[EndTime "14:41:23 PST"]
[Termination "nubair1198 won by resignation"]

1. Nf3 {[%clk 0:03:01.9]} 1... d5 {[%clk 0:03:00.6]} 2. g3 {[%clk 0:03:03]} 2...
Nf6 {[%clk 0:03:01.3]} 3. Bg2 {[%clk 0:03:04.5]} 3... c6 {[%clk 0:03:01.7]} 4.
O-O {[%clk 0:03:05.9]} 4... Bf5 {[%clk 0:03:01.9]} 5. c4 {[%clk 0:03:06]} 5...
e6 {[%clk 0:03:02.1]} 6. b3 {[%clk 0:03:05.3]} 6... Be7 {[%clk 0:03:00]} 7. Bb2
{[%clk 0:03:06.7]} 7... h6 {[%clk 0:02:57.8]} 8. d3 {[%clk 0:03:07.3]} 8... O-O
{[%clk 0:02:57.5]} 9. Nbd2 {[%clk 0:03:06.4]} 9... Bh7 {[%clk 0:02:56.9]} 10.
Re1 {[%clk 0:03:07.1]} 10... a5 {[%clk 0:02:51.6]} 11. a3 {[%clk 0:03:07.7]}
11... Na6 {[%clk 0:02:41.3]} 12. Ne5 {[%clk 0:03:07.4]} 12... Nd7 {[%clk
0:02:35]} 13. Nxd7 {[%clk 0:03:06]} 13... Qxd7 {[%clk 0:02:35.6]} 14. Nf3 {[%clk
0:03:07.6]} 14... Rfd8 {[%clk 0:02:22.9]} 15. Ne5 {[%clk 0:02:55.5]} 15... Qc7
{[%clk 0:02:21.7]} 16. d4 {[%clk 0:02:57.1]} 16... dxc4 {[%clk 0:02:05.1]} 17.
bxc4 {[%clk 0:02:50.8]} 17... Nc5 {[%clk 0:01:52.2]} 18. e4 {[%clk 0:02:38.3]}
18... f6 {[%clk 0:00:50.4]} 19. Nd3 {[%clk 0:02:17.9]} 19... Nxd3 {[%clk
0:00:48.1]} 20. Qxd3 {[%clk 0:02:19.8]} 20... e5 {[%clk 0:00:43]} 21. d5 {[%clk
0:02:04.2]} 21... Bc5 {[%clk 0:00:40.4]} 22. Re2 {[%clk 0:01:54.4]} 22... a4
{[%clk 0:00:40.3]} 23. Bh3 {[%clk 0:01:54.5]} 23... Kh8 {[%clk 0:00:39.5]} 24.
Rc1 {[%clk 0:01:48.2]} 24... Qb6 {[%clk 0:00:38.7]} 25. Kg2 {[%clk 0:01:31.2]}
25... Qb3 {[%clk 0:00:35.7]} 26. Rc3 {[%clk 0:01:30.9]} 26... Qb6 {[%clk
0:00:35.9]} 27. Rc1 {[%clk 0:01:15]} 27... Qb3 {[%clk 0:00:36]} 28. Qxb3 {[%clk
0:01:16]} 28... axb3 {[%clk 0:00:36.8]} 29. Rc3 {[%clk 0:01:17.9]} 29... Bxa3
{[%clk 0:00:30.5]} 30. Rxb3 {[%clk 0:01:18.8]} 30... Bxb2 {[%clk 0:00:29.1]} 31.
Rbxb2 {[%clk 0:01:20.7]} 31... b5 {[%clk 0:00:27.3]} 32. dxc6 {[%clk 0:01:20.8]}
32... bxc4 {[%clk 0:00:26.6]} 33. c7 {[%clk 0:01:22.3]} 33... Rf8 {[%clk
0:00:24.5]} 34. Be6 {[%clk 0:00:58.3]} 34... c3 {[%clk 0:00:17.3]} 35. Rbc2
{[%clk 0:00:55.9]} 35... Bg8 {[%clk 0:00:16.4]} 36. Bxg8 {[%clk 0:00:52.4]}
36... Kxg8 {[%clk 0:00:16.5]} 37. Rxc3 {[%clk 0:00:54.3]} 37... Rfc8 {[%clk
0:00:16.4]} 38. Rd2 {[%clk 0:00:54.3]} 38... Kf7 {[%clk 0:00:05.8]} 39. Rd7+
{[%clk 0:00:55.6]} 39... Kg6 {[%clk 0:00:07.1]} 40. g4 {[%clk 0:00:55.4]} 40...
Ra7 {[%clk 0:00:06.3]} 41. h4 {[%clk 0:00:53.7]} 41... Rb7 {[%clk 0:00:05.5]}
42. Kg3 {[%clk 0:00:48.6]} 42... Ra7 {[%clk 0:00:06.2]} 43. Rc6 {[%clk
0:00:49.1]} 43... Ra3+ {[%clk 0:00:04.7]} 44. Kg2 {[%clk 0:00:50.4]} 44... Ra7
{[%clk 0:00:05.2]} 45. Re7 {[%clk 0:00:29.3]} 45... Rb7 {[%clk 0:00:04.9]} 46.
Rc3 {[%clk 0:00:16.3]} 46... Ra7 {[%clk 0:00:05.6]} 47. Kf3 {[%clk 0:00:17.5]}
47... Rb7 {[%clk 0:00:06.2]} 48. Rd7 {[%clk 0:00:18.5]} 48... Ra7 {[%clk
0:00:07]} 49. h5+ {[%clk 0:00:20]} 49... Kh7 {[%clk 0:00:07.6]} 50. Ke3 {[%clk
0:00:21.9]} 50... Kg8 {[%clk 0:00:08.4]} 51. Kd3 {[%clk 0:00:19.5]} 51... Kh7
{[%clk 0:00:09.1]} 52. Rc6 {[%clk 0:00:20.4]} 52... Rb7 {[%clk 0:00:09.1]} 53.
Kc4 {[%clk 0:00:21.7]} 53... Ra7 {[%clk 0:00:10.1]} 54. Kd5 {[%clk 0:00:23.2]}
54... Rb7 {[%clk 0:00:08.9]} 55. Kd6 {[%clk 0:00:24]} 55... Rb4 {[%clk
0:00:08.4]} 56. Rd8 {[%clk 0:00:24.4]} 56... Rd4+ {[%clk 0:00:08.9]} 57. Ke7
{[%clk 0:00:25.8]} 57... Rxc7+ {[%clk 0:00:09.3]} 58. Rxc7 {[%clk 0:00:26.5]}
58... Rxe4 {[%clk 0:00:11.2]} 59. Rcc8 {[%clk 0:00:27.5]} 1-0

[Event "*** Titled Tuesday Blitz"]
[Site "Chess.com"]
[Date "2019.02.05"]
[Round "7"]
[White "ChristopherYoo"]
[Black "wonderfultime"]
[Result "1/2-1/2"]
[WhiteElo "2666"]
[BlackElo "2870"]
[TimeControl "180+2"]
[EndTime "14:41:27 PST"]
[Termination "Game drawn by agreement"]

1. e4 {[%clk 0:03:01.9]} 1... c5 {[%clk 0:02:59.9]} 2. Nf3 {[%clk 0:03:02.2]}
2... Nf6 {[%clk 0:03:01.2]} 3. Nc3 {[%clk 0:03:01.1]} 3... d5 {[%clk 0:03:02]}
4. e5 {[%clk 0:02:51]} 4... Nfd7 {[%clk 0:03:02.8]} 5. Nxd5 {[%clk 0:02:39.8]}
5... Nxe5 {[%clk 0:02:58.2]} 6. Nxe5 {[%clk 0:02:24.1]} 6... Qxd5 {[%clk
0:02:58.9]} 7. Bb5+ {[%clk 0:02:18.6]} 7... Nd7 {[%clk 0:02:57.1]} 8. Nxd7
{[%clk 0:02:17.3]} 8... Bxd7 {[%clk 0:02:58.3]} 9. Bxd7+ {[%clk 0:02:18.4]} 9...
Qxd7 {[%clk 0:03:00.2]} 10. O-O {[%clk 0:02:19.7]} 10... e6 {[%clk 0:02:59]} 11.
b3 {[%clk 0:02:18.9]} 11... Rd8 {[%clk 0:02:49.6]} 12. d3 {[%clk 0:02:15.3]}
12... Qd5 {[%clk 0:01:46.2]} 13. Bb2 {[%clk 0:02:13.9]} 13... Be7 {[%clk
0:01:46.9]} 14. Qg4 {[%clk 0:02:11.2]} 14... Bf6 {[%clk 0:01:35.2]} 15. Bxf6
{[%clk 0:01:55.2]} 15... gxf6 {[%clk 0:01:37.1]} 16. f4 {[%clk 0:01:48.2]} 16...
f5 {[%clk 0:01:27.4]} 17. Qh3 {[%clk 0:01:30.8]} 17... Rg8 {[%clk 0:01:24.8]}
18. Rae1 {[%clk 0:01:30.2]} 18... Rg6 {[%clk 0:01:21.1]} 19. Re5 {[%clk
0:01:22.5]} 19... Qc6 {[%clk 0:01:20.1]} 20. g3 {[%clk 0:01:18.1]} 20... Qb6
{[%clk 0:00:26.4]} 21. Rf2 {[%clk 0:01:00]} 21... Qa5 {[%clk 0:00:27.7]} 22.
Qxh7 {[%clk 0:00:49.6]} 22... Qxa2 {[%clk 0:00:25.5]} 23. Rxc5 {[%clk
0:00:45.5]} 23... Qa1+ {[%clk 0:00:25.8]} 24. Kg2 {[%clk 0:00:44.2]} 24... Qf6
{[%clk 0:00:17.7]} 25. Qh5 {[%clk 0:00:34.8]} 25... Kf8 {[%clk 0:00:13.1]} 26.
Qf3 {[%clk 0:00:30.4]} 26... Qe7 {[%clk 0:00:10.8]} 27. Re5 {[%clk 0:00:28.8]}
27... Kg7 {[%clk 0:00:11.7]} 28. Rfe2 {[%clk 0:00:25.3]} 28... Qc7 {[%clk
0:00:11]} 29. c4 {[%clk 0:00:20]} 29... b6 {[%clk 0:00:11.4]} 30. b4 {[%clk
0:00:17.9]} 30... Qd6 {[%clk 0:00:12.5]} 31. c5 {[%clk 0:00:13.4]} 31... bxc5
{[%clk 0:00:14]} 32. bxc5 {[%clk 0:00:14.4]} 32... Qxd3 {[%clk 0:00:14.8]} 33.
Qxd3 {[%clk 0:00:12.3]} 33... Rxd3 {[%clk 0:00:16.7]} 34. Rc2 {[%clk 0:00:08.1]}
34... Kf6 {[%clk 0:00:09.3]} 35. c6 {[%clk 0:00:08.7]} 35... Rg8 {[%clk
0:00:10.5]} 36. Ra5 {[%clk 0:00:06.5]} 36... Rgd8 {[%clk 0:00:07.6]} 37. c7
{[%clk 0:00:05.9]} 37... Rc8 {[%clk 0:00:06.8]} 38. Rxa7 {[%clk 0:00:06.3]}
38... Ke7 {[%clk 0:00:08.3]} 39. h4 {[%clk 0:00:05.8]} 39... f6 {[%clk
0:00:07.8]} 40. h5 {[%clk 0:00:05]} 40... Rd7 {[%clk 0:00:05.7]} 41. h6 {[%clk
0:00:03.1]} 41... Ke8 {[%clk 0:00:04.3]} 42. Rb7 {[%clk 0:00:03.4]} 42... Rh7
{[%clk 0:00:05.2]} 43. Rb8 {[%clk 0:00:04.1]} 43... Kd7 {[%clk 0:00:06.7]} 44.
Rxc8 {[%clk 0:00:03.4]} 44... Kxc8 {[%clk 0:00:08.6]} 45. Rc6 {[%clk 0:00:04.5]}
45... Rxh6 {[%clk 0:00:09.3]} 46. Rxe6 {[%clk 0:00:05.1]} 46... Kxc7 {[%clk
0:00:10.8]} 47. Kf3 {[%clk 0:00:04.7]} 47... Kd7 {[%clk 0:00:12.3]} 48. Ra6
{[%clk 0:00:05.9]} 48... Ke7 {[%clk 0:00:13.3]} 49. Rb6 {[%clk 0:00:05.2]} 49...
Kf7 {[%clk 0:00:14.6]} 50. Rb7+ {[%clk 0:00:04.6]} 50... Kg6 {[%clk 0:00:15.8]}
51. Kg2 {[%clk 0:00:03.5]} 51... Rh8 {[%clk 0:00:16.8]} 52. Rb2 {[%clk
0:00:03.4]} 52... Ra8 {[%clk 0:00:17.7]} 53. Re2 {[%clk 0:00:04]} 53... Kh5
{[%clk 0:00:18.6]} 54. Kh3 {[%clk 0:00:03.3]} 54... Ra1 {[%clk 0:00:19.1]} 55.
Re8 {[%clk 0:00:03.7]} 55... Rh1+ {[%clk 0:00:15.4]} 56. Kg2 {[%clk 0:00:04.8]}
56... Rc1 {[%clk 0:00:17.3]} 57. Rh8+ {[%clk 0:00:04.7]} 57... Kg6 {[%clk
0:00:18.8]} 58. Rd8 {[%clk 0:00:04.7]} 58... Rc3 {[%clk 0:00:18.9]} 59. Kh3
{[%clk 0:00:05.3]} 59... Kh5 {[%clk 0:00:19.5]} 60. Rh8+ {[%clk 0:00:05.8]}
60... Kg6 {[%clk 0:00:20.8]} 61. Ra8 {[%clk 0:00:05.2]} 1/2-1/2

[Event "*** Titled Tuesday Blitz"]
[Site "Chess.com"]
[Date "2019.02.05"]
[Round "7"]
[White "fm_magua"]
[Black "Gentlejimmy7"]
[Result "1-0"]
[WhiteElo "2401"]
[BlackElo "2296"]
[TimeControl "180+2"]
[EndTime "14:41:30 PST"]
[Termination "fm_magua won by resignation"]

1. e4 {[%clk 0:03:01.9]} 1... e5 {[%clk 0:03:00.4]} 2. Nf3 {[%clk 0:03:02.9]}
2... Nc6 {[%clk 0:03:01.8]} 3. Bb5 {[%clk 0:03:04.5]} 3... a6 {[%clk 0:03:02.8]}
4. Ba4 {[%clk 0:03:05.7]} 4... Nf6 {[%clk 0:03:03.6]} 5. d4 {[%clk 0:03:07.2]}
5... exd4 {[%clk 0:02:33]} 6. O-O {[%clk 0:03:07.2]} 6... Be7 {[%clk 0:02:27.2]}
7. Qe2 {[%clk 0:03:07.7]} 7... O-O {[%clk 0:02:20.3]} 8. e5 {[%clk 0:03:08.4]}
8... Nd5 {[%clk 0:02:10.4]} 9. Bb3 {[%clk 0:03:08.6]} 9... Nb6 {[%clk
0:01:58.9]} 10. Rd1 {[%clk 0:03:09]} 10... d6 {[%clk 0:01:59.5]} 11. c3 {[%clk
0:03:07.3]} 11... dxe5 {[%clk 0:01:59.7]} 12. Nxe5 {[%clk 0:03:07]} 12... Nxe5
{[%clk 0:02:00.4]} 13. Qxe5 {[%clk 0:03:07.8]} 13... Bf6 {[%clk 0:02:01.6]} 14.
Qg3 {[%clk 0:03:07]} 14... c5 {[%clk 0:02:02.3]} 15. Bf4 {[%clk 0:03:06.5]}
15... c4 {[%clk 0:01:57]} 16. Bc7 {[%clk 0:03:04.3]} 16... Qd5 {[%clk
0:01:57.7]} 17. Bxb6 {[%clk 0:03:03]} 17... cxb3 {[%clk 0:01:59.1]} 18. Bxd4
{[%clk 0:02:45.8]} 18... bxa2 {[%clk 0:01:55.9]} 19. Na3 {[%clk 0:02:41.6]}
19... Bxd4 {[%clk 0:01:56]} 20. Rxd4 {[%clk 0:02:42.3]} 20... Qb3 {[%clk
0:01:54.1]} 21. Rb4 {[%clk 0:02:35]} 21... Qd5 {[%clk 0:01:51.3]} 22. Rd4 {[%clk
0:02:33.5]} 22... Qe6 {[%clk 0:01:48.2]} 23. c4 {[%clk 0:02:17]} 23... b5 {[%clk
0:01:44.6]} 24. Qc3 {[%clk 0:02:10.9]} 24... Rb8 {[%clk 0:01:36.9]} 25. b4
{[%clk 0:01:59.3]} 25... bxc4 {[%clk 0:01:37.5]} 26. Rxa2 {[%clk 0:01:51.6]}
26... Bb7 {[%clk 0:01:35.9]} 27. Nxc4 {[%clk 0:01:37.1]} 27... Rbc8 {[%clk
0:01:35.7]} 28. Rc2 {[%clk 0:01:34.6]} 28... Qg6 {[%clk 0:01:29.2]} 29. f3
{[%clk 0:01:20.4]} 29... Bxf3 {[%clk 0:01:17.1]} 30. Rf2 {[%clk 0:01:03.3]}
30... Bb7 {[%clk 0:00:52.4]} 31. h3 {[%clk 0:00:56.9]} 31... h6 {[%clk
0:00:41.4]} 32. Rg4 {[%clk 0:00:54.4]} 32... Qh7 {[%clk 0:00:35.8]} 33. Qg3
{[%clk 0:00:48.7]} 33... Kh8 {[%clk 0:00:34.3]} 34. Nd6 {[%clk 0:00:47.7]} 34...
Rc1+ {[%clk 0:00:33.5]} 35. Kh2 {[%clk 0:00:48.5]} 35... Bd5 {[%clk 0:00:34.6]}
36. Qe5 {[%clk 0:00:47.4]} 36... Be6 {[%clk 0:00:32.7]} 37. Qxe6 {[%clk
0:00:47.7]} 37... fxe6 {[%clk 0:00:33]} 38. Rxf8+ {[%clk 0:00:48.4]} 38... Qg8
{[%clk 0:00:34.6]} 39. Nf7+ {[%clk 0:00:27.9]} 39... Kh7 {[%clk 0:00:35.2]} 40.
Rxg8 {[%clk 0:00:29.2]} 40... Kxg8 {[%clk 0:00:36.6]} 41. Nxh6+ {[%clk
0:00:30.3]} 41... Kf8 {[%clk 0:00:35.5]} 42. Rf4+ {[%clk 0:00:31.4]} 42... Ke7
{[%clk 0:00:35.3]} 43. Ng8+ {[%clk 0:00:30.4]} 43... Ke8 {[%clk 0:00:35.4]} 44.
Kg3 {[%clk 0:00:22.1]} 44... Rc8 {[%clk 0:00:36.2]} 45. Kg4 {[%clk 0:00:21.6]}
45... Rb8 {[%clk 0:00:35.8]} 46. Kg5 {[%clk 0:00:22.4]} 46... Kd7 {[%clk
0:00:36.8]} 47. Rf7+ {[%clk 0:00:22.4]} 47... Kd6 {[%clk 0:00:37.7]} 48. Rxg7
{[%clk 0:00:23.5]} 48... Rxb4 {[%clk 0:00:39.3]} 49. h4 {[%clk 0:00:24.8]} 49...
Rb2 {[%clk 0:00:33.3]} 50. g4 {[%clk 0:00:25.8]} 50... e5 {[%clk 0:00:34]} 51.
Nf6 {[%clk 0:00:25.5]} 51... Re2 {[%clk 0:00:32.7]} 52. Ra7 {[%clk 0:00:26.1]}
52... Ra2 {[%clk 0:00:31.9]} 53. h5 {[%clk 0:00:26.5]} 53... e4 {[%clk
0:00:30.6]} 54. Nxe4+ {[%clk 0:00:26.9]} 54... Ke5 {[%clk 0:00:31.5]} 55. Nc5
{[%clk 0:00:27.5]} 55... a5 {[%clk 0:00:32.4]} 56. h6 {[%clk 0:00:28.6]} 56...
Kd6 {[%clk 0:00:33.8]} 57. Nb7+ {[%clk 0:00:28.9]} 57... Kc7 {[%clk 0:00:32.1]}
58. Rxa5 {[%clk 0:00:30.4]} 58... Rh2 {[%clk 0:00:31.5]} 59. Kg6 {[%clk
0:00:30.1]} 59... Kxb7 {[%clk 0:00:32.3]} 60. h7 {[%clk 0:00:30.9]} 60... Rh4
{[%clk 0:00:32.7]} 61. g5 {[%clk 0:00:30.8]} 61... Kc6 {[%clk 0:00:34.1]} 62.
Ra8 {[%clk 0:00:31.7]} 62... Kb7 {[%clk 0:00:34]} 63. h8=Q {[%clk 0:00:31.3]}
1-0

[Event "*** Titled Tuesday Blitz"]
[Site "Chess.com"]
[Date "2019.02.05"]
[Round "7"]
[White "flomarechot"]
[Black "Thefirstchess"]
[Result "1-0"]
[WhiteElo "2068"]
[BlackElo "2001"]
[TimeControl "180+2"]
[EndTime "14:41:32 PST"]
[Termination "flomarechot won on time"]

1. d4 {[%clk 0:02:59.5]} 1... c5 {[%clk 0:02:57.6]} 2. d5 {[%clk 0:02:59.5]}
2... e6 {[%clk 0:02:57.1]} 3. c4 {[%clk 0:02:59]} 3... exd5 {[%clk 0:02:55.7]}
4. cxd5 {[%clk 0:03:00.6]} 4... d6 {[%clk 0:02:57.6]} 5. Nc3 {[%clk 0:03:01.3]}
5... Nf6 {[%clk 0:02:58.7]} 6. g3 {[%clk 0:03:02.4]} 6... g6 {[%clk 0:02:51.8]}
7. Bg2 {[%clk 0:03:03.1]} 7... Bg7 {[%clk 0:02:42.1]} 8. Nf3 {[%clk 0:03:04.5]}
8... O-O {[%clk 0:02:43.4]} 9. O-O {[%clk 0:03:06.1]} 9... Re8 {[%clk
0:02:30.3]} 10. Nd2 {[%clk 0:03:06.1]} 10... a6 {[%clk 0:01:41.7]} 11. a4 {[%clk
0:03:05.7]} 11... Nbd7 {[%clk 0:01:19.5]} 12. h3 {[%clk 0:03:05.5]} 12... Rb8
{[%clk 0:01:16.8]} 13. Nc4 {[%clk 0:03:05.4]} 13... Ne5 {[%clk 0:01:10.7]} 14.
Na3 {[%clk 0:03:06.8]} 14... Nh5 {[%clk 0:01:08.2]} 15. e4 {[%clk 0:03:04.5]}
15... Bd7 {[%clk 0:01:06.1]} 16. a5 {[%clk 0:03:05.1]} 16... Qxa5 {[%clk
0:01:00.8]} 17. g4 {[%clk 0:03:05.3]} 17... Nf6 {[%clk 0:00:49.9]} 18. f4 {[%clk
0:03:06.8]} 18... Nexg4 {[%clk 0:00:43.2]} 19. hxg4 {[%clk 0:03:07.5]} 19...
Bxg4 {[%clk 0:00:45.1]} 20. Qc2 {[%clk 0:02:56.5]} 20... Qc7 {[%clk 0:00:37.5]}
21. Nc4 {[%clk 0:02:41.5]} 21... b5 {[%clk 0:00:31.3]} 22. Ne3 {[%clk
0:02:42.5]} 22... Bd7 {[%clk 0:00:27.3]} 23. Rxa6 {[%clk 0:02:42.5]} 23... b4
{[%clk 0:00:26.5]} 24. Ne2 {[%clk 0:02:40.6]} 24... Bb5 {[%clk 0:00:18.7]} 25.
Ra1 {[%clk 0:02:40.8]} 25... b3 {[%clk 0:00:20]} 26. Qd1 {[%clk 0:02:31.5]}
26... Nxe4 {[%clk 0:00:21.4]} 27. Bxe4 {[%clk 0:02:28.6]} 27... Rxe4 {[%clk
0:00:23.3]} 28. Ng3 {[%clk 0:02:24.8]} 28... Ree8 {[%clk 0:00:18.2]} 29. Rf3
{[%clk 0:02:17.1]} 29... Bd4 {[%clk 0:00:19.4]} 30. Kg2 {[%clk 0:02:04.7]} 30...
Re7 {[%clk 0:00:17.7]} 31. Qxb3 {[%clk 0:01:55.4]} 31... Bf1+ {[%clk 0:00:17.9]}
32. Nexf1 {[%clk 0:01:54.7]} 32... Rxb3 {[%clk 0:00:19.5]} 33. Rxb3 {[%clk
0:01:55.8]} 33... c4 {[%clk 0:00:20.6]} 34. Rf3 {[%clk 0:01:54.8]} 34... Qc5
{[%clk 0:00:21.2]} 35. f5 {[%clk 0:01:52.9]} 35... Qxd5 {[%clk 0:00:22.1]} 36.
Bh6 {[%clk 0:01:48.6]} 36... Re8 {[%clk 0:00:22.6]} 37. Rd1 {[%clk 0:01:49.3]}
37... Qc5 {[%clk 0:00:20.4]} 38. Nd2 {[%clk 0:01:48.9]} 38... Bxb2 {[%clk
0:00:21.2]} 39. Nde4 {[%clk 0:01:48.2]} 39... Qc6 {[%clk 0:00:12.7]} 40. Rxd6
{[%clk 0:01:43.1]} 40... Qc7 {[%clk 0:00:12.4]} 41. fxg6 {[%clk 0:01:38.2]}
41... hxg6 {[%clk 0:00:12.1]} 42. Bd2 {[%clk 0:01:06.6]} 42... Bg7 {[%clk
0:00:09.6]} 43. Bc3 {[%clk 0:01:02.2]} 43... f5 {[%clk 0:00:09.6]} 44. Nf6+
{[%clk 0:01:01.2]} 44... Bxf6 {[%clk 0:00:09.3]} 45. Rxf6 {[%clk 0:01:02.5]}
45... Kh7 {[%clk 0:00:09.6]} 46. Rf1 {[%clk 0:00:58.8]} 46... Kh6 {[%clk
0:00:04]} 47. Nxf5+ {[%clk 0:00:56.8]} 47... Kg5 {[%clk 0:00:04.7]} 48. Ng3
{[%clk 0:00:56.7]} 48... Rc8 {[%clk 0:00:02.9]} 49. Bd2+ {[%clk 0:00:56.1]}
49... Kh4 {[%clk 0:00:03]} 50. R1f4+ {[%clk 0:00:51.2]} 50... Kg5 {[%clk
0:00:02.9]} 51. Ne4+ {[%clk 0:00:31]} 51... Kh5 {[%clk 0:00:02.8]} 52. Ng3+
{[%clk 0:00:28.2]} 52... Kg5 {[%clk 0:00:03.5]} 53. Rf7 {[%clk 0:00:23.8]} 53...
Qc6+ {[%clk 0:00:03.4]} 54. Rf3+ {[%clk 0:00:24.5]} 1-0

[Event "*** Titled Tuesday Blitz"]
[Site "Chess.com"]
[Date "2019.02.05"]
[Round "7"]
[White "DrVelja"]
[Black "iturrizaga"]
[Result "0-1"]
[WhiteElo "2635"]
[BlackElo "2804"]
[TimeControl "180+2"]
[EndTime "14:41:34 PST"]
[Termination "iturrizaga won by resignation"]

1. e4 {[%clk 0:03:01.9]} 1... c5 {[%clk 0:03:01]} 2. Nf3 {[%clk 0:03:02.9]} 2...
g6 {[%clk 0:03:02]} 3. d4 {[%clk 0:03:01.9]} 3... cxd4 {[%clk 0:03:03.9]} 4.
Nxd4 {[%clk 0:03:03.8]} 4... Nc6 {[%clk 0:03:04.9]} 5. c4 {[%clk 0:03:05.2]}
5... Bg7 {[%clk 0:03:05.4]} 6. Be3 {[%clk 0:03:05.6]} 6... Nf6 {[%clk 0:03:07]}
7. Nc3 {[%clk 0:03:05.6]} 7... O-O {[%clk 0:03:08.3]} 8. Be2 {[%clk 0:03:06.2]}
8... d6 {[%clk 0:03:09.9]} 9. O-O {[%clk 0:03:07]} 9... Bd7 {[%clk 0:03:11.5]}
10. Nc2 {[%clk 0:03:08.3]} 10... Be6 {[%clk 0:03:11.9]} 11. f3 {[%clk
0:03:07.6]} 11... Nd7 {[%clk 0:03:11.2]} 12. Qd2 {[%clk 0:03:07.3]} 12... a5
{[%clk 0:03:10.4]} 13. b3 {[%clk 0:03:05.9]} 13... Nc5 {[%clk 0:03:10.8]} 14.
Rab1 {[%clk 0:03:01.7]} 14... Qb6 {[%clk 0:03:07.9]} 15. Rfc1 {[%clk 0:03:01]}
15... Rfc8 {[%clk 0:03:06.5]} 16. Bf1 {[%clk 0:03:01.1]} 16... Qd8 {[%clk
0:03:05.2]} 17. Kh1 {[%clk 0:02:59.4]} 17... Bh8 {[%clk 0:03:05]} 18. Nd5 {[%clk
0:02:53.5]} 18... h5 {[%clk 0:02:28.9]} 19. Bg5 {[%clk 0:02:46.3]} 19... Bxd5
{[%clk 0:02:24.8]} 20. exd5 {[%clk 0:02:44.2]} 20... Nb4 {[%clk 0:02:25.1]} 21.
Nd4 {[%clk 0:02:41.5]} 21... Bf6 {[%clk 0:01:46.8]} 22. a3 {[%clk 0:02:24.9]}
22... Nba6 {[%clk 0:01:43.4]} 23. Re1 {[%clk 0:02:25.6]} 23... Bxg5 {[%clk
0:01:38.9]} 24. Qxg5 {[%clk 0:02:27.5]} 24... e5 {[%clk 0:01:40.5]} 25. Qxd8+
{[%clk 0:02:18.1]} 25... Rxd8 {[%clk 0:01:42.4]} 26. Nb5 {[%clk 0:02:14.4]}
26... Rac8 {[%clk 0:01:43.8]} 27. Kg1 {[%clk 0:02:05.8]} 27... Kg7 {[%clk
0:01:34.9]} 28. Kf2 {[%clk 0:01:53.8]} 28... Nc7 {[%clk 0:01:34.7]} 29. Nc3
{[%clk 0:01:47.7]} 29... Na8 {[%clk 0:01:35]} 30. b4 {[%clk 0:01:19.9]} 30...
axb4 {[%clk 0:01:34.8]} 31. axb4 {[%clk 0:01:21.8]} 31... Na6 {[%clk 0:01:32]}
32. Ne4 {[%clk 0:01:15.1]} 32... Nb6 {[%clk 0:01:26.8]} 33. Rec1 {[%clk
0:01:16]} 33... Rc7 {[%clk 0:01:16.2]} 34. h4 {[%clk 0:01:10.3]} 34... Rcc8
{[%clk 0:00:45.1]} 35. g3 {[%clk 0:01:02.6]} 35... Nc7 {[%clk 0:00:45]} 36. Ke3
{[%clk 0:00:34.6]} 36... Ne8 {[%clk 0:00:39.7]} 37. Kd2 {[%clk 0:00:28.5]} 37...
Rc7 {[%clk 0:00:35.8]} 38. Rc2 {[%clk 0:00:23.7]} 38... Ra8 {[%clk 0:00:33.8]}
39. Bd3 {[%clk 0:00:20.4]} 39... Ra3 {[%clk 0:00:29.4]} 40. c5 {[%clk
0:00:11.7]} 40... dxc5 {[%clk 0:00:26.8]} 41. d6 {[%clk 0:00:12.7]} 41... Nxd6
{[%clk 0:00:10]} 42. Nxd6 {[%clk 0:00:13.5]} 42... c4 {[%clk 0:00:10.2]} 43.
Ne8+ {[%clk 0:00:14.3]} 43... Kf8 {[%clk 0:00:10.3]} 44. Nxc7 {[%clk 0:00:15.8]}
44... Rxd3+ {[%clk 0:00:11.3]} 45. Ke2 {[%clk 0:00:17]} 45... e4 {[%clk
0:00:11.8]} 46. fxe4 {[%clk 0:00:15.5]} 46... Rxg3 {[%clk 0:00:13.3]} 47. Nd5
{[%clk 0:00:17.1]} 47... Rg2+ {[%clk 0:00:14.4]} 48. Kd1 {[%clk 0:00:16]} 48...
Rg1+ {[%clk 0:00:15.5]} 49. Kd2 {[%clk 0:00:17.1]} 49... Rxb1 {[%clk 0:00:12.9]}
50. Nxb6 {[%clk 0:00:18]} 50... Rxb4 {[%clk 0:00:14.6]} 51. Nxc4 {[%clk
0:00:17.7]} 51... b5 {[%clk 0:00:14.5]} 52. Nd6 {[%clk 0:00:15.9]} 52... Rd4+
{[%clk 0:00:15.7]} 53. Ke3 {[%clk 0:00:15.2]} 53... Rxd6 {[%clk 0:00:17.6]} 54.
Rb2 {[%clk 0:00:16.4]} 54... Rd1 {[%clk 0:00:16.3]} 55. Rxb5 {[%clk 0:00:17.4]}
55... Rh1 {[%clk 0:00:17.1]} 56. Kf4 {[%clk 0:00:15.5]} 56... Rxh4+ {[%clk
0:00:17.6]} 57. Ke5 {[%clk 0:00:17.4]} 57... Kg7 {[%clk 0:00:16.9]} 58. Rb1
{[%clk 0:00:19.1]} 58... Rh2 {[%clk 0:00:17.7]} 59. Rf1 {[%clk 0:00:20.3]} 59...
Rd2 {[%clk 0:00:17.1]} 60. Kf4 {[%clk 0:00:21.6]} 60... Rd8 {[%clk 0:00:17.3]}
61. Rd1 {[%clk 0:00:22.1]} 61... Rxd1 {[%clk 0:00:17.8]} 0-1